bitfinex/quotes_BTCUSD_20241203
["timestamp","ask_amount","ask_price","bid_price","bid_amount"]
[1733249478578,0.00748911,95807.0,95803.0,0.023]
[1733249478819,0.00748911,95807.0,95805.0,0.023]
[1733249479037,0.000863,95808.0,95806.0,0.208755]
[1733249479254,0.000863,95808.0,95807.0,0.0248474]
[1733249479453,0.000863,95808.0,95807.0,0.023]
[1733249480651,0.000863,95808.0,95807.0,0.025]
[1733249480892,0.000863,95808.0,95807.0,0.023]
[1733249481105,0.000863,95808.0,95807.0,0.03]
[1733249481591,0.000863,95808.0,95807.0,0.007]
[1733249481815,0.082363,95808.0,95807.0,0.007]
[1733249482035,0.24048416,95808.0,95807.0,0.007]
[1733249482274,0.24048416,95808.0,95807.0,0.01]
[1733249482712,0.24048416,95808.0,95807.0,0.003]
[1733249482946,0.26765369,95808.0,95807.0,0.003]
[1733249483175,0.26765369,95808.0,95807.0,0.01]
[1733249483399,0.208753,95807.0,95789.0,0.208792]
[1733249483633,0.208759,95804.0,95789.0,0.208792]
[1733249483860,0.208772,95799.0,95789.0,0.208792]
[1733249484349,0.00600467,95798.0,95789.0,0.208792]
[1733249484575,0.00600467,95798.0,95797.0,0.023]
[1733249484813,0.000863,95808.0,95798.0,0.208772]
[1733249485044,0.000863,95808.0,95801.0,0.208766]
[1733249485284,0.000863,95808.0,95807.0,0.001]
[1733249485528,0.000863,95808.0,95804.0,0.208757]
[1733249485758,0.000863,95808.0,95802.0,0.023]
[1733249486453,0.0059847,95807.0,95802.0,0.023]
[1733249487404,0.000863,95808.0,95802.0,0.023]
[1733249487623,0.0059847,95806.0,95802.0,0.025]
[1733249487841,0.000863,95808.0,95804.0,0.001]
[1733249488074,0.0059847,95805.0,95804.0,0.001]
[1733249488375,0.208759,95804.0,95802.0,0.002]
[1733249488590,0.208759,95804.0,95802.0,0.003]
[1733249488780,0.00749133,95803.0,95802.0,0.003]
[1733249489022,0.00749133,95803.0,95802.0,0.002]
[1733249489237,0.00749133,95803.0,95802.0,0.004]
[1733249489697,0.208753,95807.0,95802.0,0.004]
[1733249489926,0.208753,95807.0,95794.0,0.208781]
[1733249489927,0.208753,95807.0,95796.0,0.208776]
[1733249490116,0.00749133,95806.0,95802.0,0.004]
[1733249490348,0.00749133,95806.0,95796.0,0.208776]
[1733249490879,0.00749133,95806.0,95802.0,0.004]
[1733249491096,0.00749133,95806.0,95802.0,0.210763]
[1733249491553,0.000863,95808.0,95802.0,0.417526]
[1733249491771,0.000863,95806.0,95802.0,0.417526]
[1733249492233,0.000863,95806.0,95802.0,0.208763]
[1733249492440,0.000863,95806.0,95802.0,0.211763]
[1733249492666,0.000863,95806.0,95802.0,0.212763]
[1733249493121,0.000863,95806.0,95802.0,0.421525]
[1733249493364,0.000863,95806.0,95802.0,0.212762]
[1733249493582,0.000863,95806.0,95805.0,0.023]
[1733249493793,0.000863,95806.0,95805.0,0.0248473]
[1733249495597,0.000863,95806.0,95805.0,0.0288473]
[1733249495981,0.000863,95806.0,95805.0,0.027]
[1733249497092,0.00835552,95806.0,95805.0,0.027]
[1733249500207,0.00835552,95806.0,95805.0,0.004]
[1733249501551,0.000863,95806.0,95805.0,0.004]
[1733249501761,0.000863,95806.0,95805.0,0.027]
[1733249501970,0.00867959,95806.0,95805.0,0.027]
[1733249502641,0.00868316,95806.0,95805.0,0.027]
[1733249503331,0.01617706,95806.0,95805.0,0.027]
[1733249503832,0.00868316,95806.0,95805.0,0.027]
[1733249504774,0.01618083,95806.0,95805.0,0.027]
[1733249505193,0.00868316,95806.0,95805.0,0.027]
[1733249505852,0.00868316,95806.0,95805.0,0.004]
[1733249506074,0.02869308,95806.0,95805.0,0.004]
[1733249507382,0.02869928,95806.0,95805.0,0.004]
[1733249507619,0.01618321,95806.0,95805.0,0.004]
[1733249508034,0.00868554,95806.0,95805.0,0.027]
[1733249510896,0.00868554,95806.0,95805.0,0.004]
[1733249516620,0.00868933,95806.0,95805.0,0.004]
[1733249519360,0.01619049,95806.0,95805.0,0.004]
[1733249520075,0.01619049,95806.0,95805.0,0.003]
[1733249520307,0.208766,95801.0,95800.0,0.0017256]
[1733249520547,0.21659233,95801.0,95800.0,0.0017256]
[1733249520783,0.22440644,95801.0,95800.0,0.0017256]
[1733249521652,0.37440644,95801.0,95800.0,0.0027256]
[1733249522526,0.37440447,95801.0,95800.0,0.0027256]
[1733249523449,0.47911706,95801.0,95800.0,0.0027256]
[1733249524546,0.55541706,95801.0,95800.0,0.0027256]
[1733249524969,0.435074,95797.0,95796.0,0.0017256]
[1733249525195,0.99641095,95797.0,95796.0,0.0017256]
[1733249525418,1.03476493,95797.0,95796.0,0.0017256]
[1733249525635,1.00414243,95797.0,95796.0,0.0017256]
[1733249526058,1.0041332,95797.0,95796.0,0.0017256]
[1733249526261,0.6041332,95797.0,95796.0,0.0017256]
[1733249526493,0.17354661,95797.0,95796.0,0.0027256]
[1733249526767,0.2782592,95797.0,95796.0,0.0027256]
[1733249527026,0.2702592,95797.0,95796.0,0.0017256]
[1733249527241,0.2792592,95797.0,95796.0,0.0027256]
[1733249527452,0.2822592,95797.0,95796.0,0.0037256]
[1733249527686,0.2792592,95797.0,95796.0,0.0027256]
[1733249527902,0.01673148,95797.0,95796.0,0.0027256]
[1733249528103,0.01973148,95797.0,95796.0,0.0037256]
[1733249528562,0.01073148,95797.0,95796.0,0.0027256]
[1733249528801,0.01073148,95797.0,95796.0,0.0037256]
[1733249528802,0.02453536,95797.0,95796.0,0.0037256]
[1733249529023,0.27924795,95797.0,95796.0,0.0037256]
[1733249529275,0.27324795,95797.0,95796.0,0.0027256]
[1733249529519,0.27024795,95797.0,95796.0,0.0017256]
[1733249529732,0.27224795,95797.0,95796.0,0.0017256]
[1733249529957,0.27224795,95797.0,95796.0,0.0027256]
[1733249529958,0.27624795,95797.0,95796.0,0.0027256]
[1733249530182,0.01553536,95797.0,95796.0,0.0017256]
[1733249530667,0.02253536,95797.0,95796.0,0.0017256]
[1733249531291,0.01853536,95797.0,95796.0,0.0017256]
[1733249531726,0.02153536,95797.0,95796.0,0.0017256]
[1733249531955,0.01853536,95797.0,95796.0,0.0017256]
[1733249532201,0.02053342,95797.0,95796.0,0.0017256]
[1733249533495,0.35854601,95797.0,95796.0,0.0017256]
[1733249533712,0.17053342,95797.0,95796.0,0.0017256]
[1733249534350,0.02053342,95797.0,95796.0,0.0017256]
[1733249534822,0.01996942,95797.0,95796.0,0.0017256]
[1733249535048,0.22094148,95797.0,95796.0,0.0017256]
[1733249535284,0.22874342,95797.0,95796.0,0.0017256]
[1733249535710,0.22674282,95797.0,95796.0,0.0017256]
[1733249535955,0.22374282,95797.0,95796.0,0.0017256]
[1733249536172,0.22474282,95797.0,95796.0,0.0017256]
[1733249536405,0.22574282,95797.0,95796.0,0.0017256]
[1733249537971,0.33045541,95797.0,95796.0,0.0017256]
[1733249545292,0.01696882,95797.0,95796.0,0.0017256]
[1733249545517,0.00916748,95797.0,95796.0,0.0017256]
[1733249545744,0.00916748,95797.0,95796.0,0.0832256]
[1733249545975,0.00916748,95797.0,95796.0,0.1289256]
[1733249546186,0.0008628,95801.0,95797.0,0.208774]
[1733249547129,0.0008628,95801.0,95796.0,0.1319256]
[1733249547368,0.00780134,95800.0,95796.0,0.1289256]
[1733249547598,0.00780134,95799.0,95797.0,0.001]
[1733249547811,0.00780134,95800.0,95797.0,0.001]
[1733249548025,0.01371094,95799.0,95797.0,0.001]
[1733249548244,0.0059096,95799.0,95797.0,0.001]
[1733249548458,0.00780134,95798.0,95797.0,0.001]
[1733249548951,0.01371131,95798.0,95796.0,0.1289256]
[1733249549151,0.00780134,95797.0,95796.0,0.1289256]
[1733249549375,0.00780134,95797.0,95796.0,0.1299256]
[1733249549608,0.00780134,95797.0,95796.0,0.1289256]
[1733249549843,0.01371131,95797.0,95796.0,0.3377016]
[1733249550061,0.00780134,95797.0,95796.0,0.1289256]
[1733249550299,0.01371131,95797.0,95796.0,0.1289256]
[1733249551185,0.01371131,95797.0,95796.0,0.1319256]
[1733249551634,0.01371131,95797.0,95796.0,0.1329256]
[1733249555995,0.01371131,95797.0,95796.0,0.0057256]
[1733249556692,0.1184239,95797.0,95796.0,0.0057256]
[1733249556917,0.14616388,95797.0,95796.0,0.0057256]
[1733249557132,0.1184239,95797.0,95796.0,0.0057256]
[1733249564290,0.1192868,95797.0,95796.0,0.0057256]
[1733249567878,0.11930821,95797.0,95796.0,0.0057256]
[1733249569252,0.42431116,95797.0,95796.0,6e-07]
[1733249569550,0.358816,95778.0,95777.0,0.0007264]
[1733249569793,0.47135176,95778.0,95777.0,0.0007264]
[1733249570010,0.47756116,95778.0,95777.0,0.0007264]
[1733249570461,0.67756116,95778.0,95777.0,0.0007264]
[1733249570685,0.358829,95772.0,95769.0,0.0008625]
[1733249570941,0.358829,95772.0,95759.0,0.0153]
[1733249570942,0.2,95766.0,95759.0,0.0153]
[1733249571159,0.26253576,95765.0,95759.0,0.0153]
[1733249571386,0.358851,95762.0,95759.0,0.0153]
[1733249571606,0.47138676,95762.0,95759.0,0.0153]
[1733249571825,0.4775123,95762.0,95759.0,0.0153]
[1733249572363,0.9984123,95762.0,95759.0,0.0153]
[1733249572582,0.608855,95760.0,95759.0,0.01222014]
[1733249572797,0.86356759,95760.0,95759.0,0.01222014]
[1733249573019,0.87748312,95760.0,95759.0,0.01222014]
[1733249574838,0.88648312,95760.0,95759.0,0.01322014]
[1733249575078,0.87748312,95760.0,95759.0,0.01222014]
[1733249575553,0.88648312,95760.0,95759.0,0.01322014]
[1733249575786,0.88648312,95760.0,95759.0,0.01422014]
[1733249575787,0.89348312,95760.0,95759.0,0.01422014]
[1733249576236,0.90148312,95760.0,95759.0,0.01522014]
[1733249576462,0.90148312,95760.0,95714.0,0.1277]
[1733249576463,0.758859,95758.0,95757.0,0.13734274]
[1733249576686,0.93987159,95758.0,95757.0,0.02789321]
[1733249576911,0.95392755,95758.0,95757.0,2.1e-07]
[1733249577629,0.4,95748.0,95747.0,0.19418229]
[1733249577881,0.55,95738.0,95707.0,0.2]
[1733249578089,0.55,95728.0,95707.0,0.2]
[1733249578314,0.89093759,95728.0,95707.0,0.2]
[1733249578556,0.558947,95718.0,95707.0,0.2]
[1733249578772,0.73598276,95718.0,95707.0,0.2]
[1733249578995,0.408968,95708.0,95707.0,0.2]
[1733249579217,0.87150376,95708.0,95707.0,0.17969081]
[1733249579440,0.87808175,95708.0,95707.0,0.08145072]
[1733249579681,0.87808175,95708.0,95707.0,0.04048953]
[1733249579917,0.67808175,95708.0,95707.0,0.04048953]
[1733249580130,0.87808175,95708.0,95707.0,0.04048953]
[1733249581024,0.87808175,95708.0,95707.0,0.04148953]
[1733249581025,0.68608175,95708.0,95707.0,0.04148953]
[1733249581228,0.48608175,95708.0,95707.0,0.04148953]
[1733249581446,0.71270096,95708.0,95707.0,0.04148953]
[1733249581657,0.50470096,95708.0,95707.0,0.04048953]
[1733249581908,0.52270096,95708.0,95707.0,0.04248953]
[1733249582124,0.52270096,95708.0,95707.0,0.04148953]
[1733249582360,0.51370096,95708.0,95707.0,0.04048953]
[1733249582577,0.52270096,95708.0,95707.0,0.04148953]
[1733249582787,0.52070096,95708.0,95707.0,0.04048953]
[1733249583223,0.52970096,95708.0,95707.0,0.04148953]
[1733249583885,0.50308175,95708.0,95707.0,0.04148953]
[1733249584149,0.69608175,95708.0,95707.0,0.04148953]
[1733249584357,0.69608175,95708.0,95703.0,1e-06]
[1733249584358,0.55,95704.0,95703.0,1e-06]
[1733249584600,0.66244701,95704.0,95703.0,1e-06]
[1733249584854,0.66952178,95704.0,95703.0,1e-06]
[1733249585710,0.68452178,95704.0,95703.0,0.002001]
[1733249588226,0.68452178,95704.0,95703.0,0.002]
[1733249590551,0.68452178,95704.0,95672.0,0.0817]
[1733249590552,0.549572,95701.0,95672.0,0.082128]
[1733249590764,0.66201901,95701.0,95672.0,0.082128]
[1733249591014,0.66907263,95701.0,95672.0,0.082128]
[1733249591270,0.66905895,95701.0,95672.0,0.082128]
[1733249591756,0.67405895,95701.0,95700.0,0.0027258]
[1733249592214,0.68305895,95701.0,95700.0,0.0027258]
[1733249594804,0.68305895,95701.0,95700.0,8e-07]
[1733249598975,0.68305895,95701.0,95700.0,0.0913658]
[1733249599428,0.68305895,95701.0,95700.0,0.0930932]
[1733249601701,0.68312658,95701.0,95700.0,0.0930932]
[1733249603142,0.28355458,95701.0,95700.0,0.0930932]
[1733249603401,0.28355458,95701.0,95700.0,0.1708932]
[1733249603402,0.13355458,95701.0,95700.0,0.1708932]
[1733249604113,0.12855458,95701.0,95700.0,0.1708924]
[1733249604323,0.12555458,95701.0,95700.0,0.1708924]
[1733249604765,0.27655458,95701.0,95700.0,0.1718924]
[1733249606575,0.28055458,95701.0,95700.0,0.1718924]
[1733249608342,0.68012658,95701.0,95700.0,4e-07]
[1733249609022,0.48012658,95701.0,95700.0,4e-07]
[1733249609473,0.47612658,95701.0,95700.0,4e-07]
[1733249610135,0.48112658,95701.0,95700.0,4e-07]
[1733249610405,0.349572,95697.0,95686.0,0.2]
[1733249610594,0.46207296,95697.0,95686.0,0.2]
[1733249610800,0.46915167,95697.0,95686.0,0.2]
[1733249611228,0.26957967,95697.0,95696.0,0.2828]
[1733249611676,0.28157967,95697.0,95696.0,0.2828]
[1733249611888,0.28162665,95697.0,95696.0,0.2828]
[1733249612723,0.28162665,95697.0,95696.0,0.3288]
[1733249613635,0.28162665,95697.0,95696.0,0.2]
[1733249615398,0.28162629,95697.0,95696.0,0.2]
[1733249615844,0.27762629,95697.0,95696.0,0.2]
[1733249616272,0.28162629,95697.0,95696.0,0.2]
[1733249616487,0.27362629,95697.0,95696.0,0.2]
[1733249616685,0.26962629,95697.0,95696.0,0.2]
[1733249616956,0.27862629,95697.0,95696.0,0.2]
[1733249621058,0.12862629,95697.0,95696.0,0.2815]
[1733249621276,0.12862629,95697.0,95696.0,0.3293]
[1733249622200,0.27862629,95697.0,95696.0,0.3293]
[1733249622439,0.27862629,95697.0,95696.0,0.331026]
[1733249626044,0.2707913,95697.0,95696.0,0.331026]
[1733249626253,0.27862265,95697.0,95696.0,0.331026]
[1733249629517,0.27862395,95697.0,95696.0,0.331026]
[1733249631439,0.02391136,95697.0,95696.0,0.331026]
[1733249632732,0.02391136,95697.0,95696.0,0.331454]
[1733249635212,0.01607871,95697.0,95696.0,0.331454]
[1733249635427,0.02391204,95697.0,95696.0,0.331454]
[1733249645719,0.009,95697.0,95696.0,0.331454]
[1733249646180,0.217992,95697.0,95696.0,0.331454]
[1733249646438,0.214992,95697.0,95696.0,0.331454]
[1733249646646,0.2278013,95697.0,95696.0,0.331454]
[1733249646857,0.2238013,95697.0,95696.0,0.331454]
[1733249648385,0.2248013,95697.0,95696.0,0.331454]
[1733249648602,0.2228013,95697.0,95696.0,0.331454]
[1733249649065,0.2268013,95697.0,95696.0,0.331454]
[1733249649499,0.2268013,95697.0,95696.0,0.283226]
[1733249649778,0.33351389,95697.0,95696.0,0.201726]
[1733249651695,0.33151389,95697.0,95696.0,0.201726]
[1733249651956,0.32651389,95697.0,95696.0,0.201726]
[1733249652652,0.33651389,95697.0,95696.0,0.201726]
[1733249653156,0.48651389,95697.0,95696.0,0.201726]
[1733249653871,0.47951389,95697.0,95696.0,0.201726]
[1733249654804,0.47651389,95697.0,95696.0,0.201726]
[1733249655025,0.48351389,95697.0,95696.0,0.201726]
[1733249655270,0.48651389,95697.0,95696.0,0.201726]
[1733249655766,0.49351389,95697.0,95696.0,0.201726]
[1733249656243,0.49051389,95697.0,95696.0,0.201726]
[1733249656464,0.49351389,95697.0,95696.0,0.201726]
[1733249658797,0.3888013,95697.0,95696.0,0.280826]
[1733249665850,0.0298093,95697.0,95696.0,0.329654]
[1733249666293,0.02483606,95697.0,95696.0,0.329654]
[1733249667714,0.02183606,95697.0,95696.0,0.329654]
[1733249667962,0.00783606,95697.0,95696.0,0.329654]
[1733249668208,0.00883606,95697.0,95696.0,0.43436659]
[1733249668419,0.000863,95701.0,95696.0,0.43436659]
[1733249668420,0.09401098,95727.0,95723.0,0.000428]
[1733249668650,0.208915,95733.0,95724.0,0.079928]
[1733249668651,0.30292598,95733.0,95724.0,0.079928]
[1733249668876,0.208904,95738.0,95733.0,0.1286]
[1733249669118,0.208897,95741.0,95733.0,0.1286]
[1733249669376,0.208897,95741.0,95734.0,0.0811]
[1733249669592,0.208905,95737.0,95734.0,0.0811]
[1733249670063,0.208905,95737.0,95734.0,0.081528]
[1733249670270,0.208888,95745.0,95734.0,0.08170393]
[1733249671395,0.208905,95738.0,95734.0,0.08170393]
[1733249672051,0.003,95741.0,95734.0,0.08170393]
[1733249672052,0.208899,95740.0,95734.0,0.08170393]
[1733249672761,0.208909,95736.0,95734.0,0.08170393]
[1733249673279,0.005,95745.0,95741.0,0.0762]
[1733249673492,0.005,95745.0,95744.0,0.000428]
[1733249673919,0.208884,95747.0,95746.0,0.000428]
[1733249675760,0.213884,95747.0,95746.0,0.000428]
[1733249677369,0.221006,95747.0,95746.0,0.000428]
[1733249678797,0.012122,95747.0,95746.0,0.000428]
[1733249679022,0.012122,95747.0,95746.0,0.078028]
[1733249679460,0.007,95747.0,95746.0,0.078028]
[1733249679683,0.0121198,95747.0,95746.0,0.078028]
[1733249680133,0.0121198,95747.0,95746.0,0.2887624]
[1733249680374,0.007,95747.0,95746.0,0.127128]
[1733249681985,0.01229293,95747.0,95746.0,0.127128]
[1733249682741,0.01315583,95747.0,95746.0,0.127128]
[1733249687733,0.01315583,95747.0,95746.0,0.336014]
[1733249687951,0.0078629,95747.0,95746.0,0.336014]
[1733249689526,0.0078629,95747.0,95746.0,0.44072659]
[1733249690245,0.0078629,95747.0,95746.0,0.64072659]
[1733249690456,0.0058629,95747.0,95746.0,0.66372659]
[1733249690672,0.208818,95778.0,95775.0,0.0767]
[1733249691144,0.20882,95776.0,95775.0,0.0767]
[1733249691654,0.21412049,95776.0,95775.0,0.0767]
[1733249691860,0.21418175,95776.0,95775.0,0.0767]
[1733249693394,0.21418175,95776.0,95775.0,0.0777]
[1733249693599,0.21418175,95776.0,95775.0,0.0767]
[1733249694118,0.22318175,95776.0,95775.0,0.0777]
[1733249694795,0.23118175,95776.0,95775.0,0.0777]
[1733249695243,0.22218175,95776.0,95775.0,0.0767]
[1733249695694,0.21418175,95776.0,95775.0,0.0767]
[1733249696613,0.22318175,95776.0,95775.0,0.0777]
[1733249697048,0.22818175,95776.0,95775.0,0.0777]
[1733249697829,0.22818175,95776.0,95775.0,0.001]
[1733249698028,0.48289434,95776.0,95775.0,0.001]
[1733249698734,0.47789434,95776.0,95775.0,0.001]
[1733249698954,0.50483538,95776.0,95775.0,0.001]
[1733249699919,0.208846,95764.0,95763.0,0.000428]
[1733249700627,0.21473294,95764.0,95763.0,0.080728]
[1733249700874,0.21473294,95764.0,95763.0,0.000428]
[1733249701357,0.42557994,95764.0,95763.0,0.000428]
[1733249701838,0.42657994,95764.0,95763.0,0.000428]
[1733249705419,0.00888694,95764.0,95763.0,0.076028]
[1733249705658,0.003,95764.0,95763.0,0.076028]
[1733249706126,0.0038629,95764.0,95763.0,0.076028]
[1733249706579,0.0008629,95764.0,95763.0,0.076028]
[1733249706827,0.0018629,95764.0,95763.0,0.125528]
[1733249707059,0.0038629,95764.0,95763.0,0.125528]
[1733249707757,0.00972187,95764.0,95763.0,0.125528]
[1733249707981,0.0038629,95764.0,95763.0,0.12737611]
[1733249714111,0.0038629,95764.0,95763.0,0.125528]
[1733249714339,0.0038629,95764.0,95763.0,0.12737593]
[1733249717578,0.0038629,95764.0,95763.0,0.125528]
[1733249718513,0.0038629,95764.0,95763.0,0.12737598]
[1733249720862,0.2127089,95764.0,95763.0,0.076028]
[1733249721074,0.2127089,95764.0,95747.0,0.001725]
[1733249721075,0.208875,95751.0,95747.0,0.001725]
[1733249721291,0.417751,95751.0,95747.0,0.001725]
[1733249721517,0.00620205,95750.0,95749.0,0.000428]
[1733249722234,0.00620205,95750.0,95749.0,0.082428]
[1733249722473,0.208854,95761.0,95749.0,0.082428]
[1733249722690,0.002,95751.0,95750.0,0.00227637]
[1733249722927,0.00637494,95760.0,95756.0,0.000428]
[1733249723145,0.20885,95763.0,95756.0,0.000428]
[1733249723393,0.0063542,95759.0,95757.0,0.000428]
[1733249723619,0.20885,95763.0,95762.0,0.000428]
[1733249724052,0.0008629,95764.0,95763.0,0.000428]
[1733249724276,0.0008629,95764.0,95757.0,0.000428]
[1733249724534,0.0008629,95764.0,95763.0,0.000428]
[1733249726345,0.0018629,95764.0,95763.0,0.000428]
[1733249726993,0.0028629,95764.0,95763.0,0.000428]
[1733249731804,0.0028629,95764.0,95763.0,0.081428]
[1733249732035,0.0028629,95764.0,95763.0,0.08327611]
[1733249732308,0.0028629,95764.0,95763.0,0.081428]
[1733249732776,0.0028629,95764.0,95763.0,0.000428]
[1733249732984,0.2117089,95764.0,95763.0,0.000428]
[1733249733436,0.21808035,95764.0,95763.0,0.000428]
[1733249738203,0.21808035,95764.0,95763.0,0.000428]
[1733249739095,0.00923435,95764.0,95763.0,0.000428]
[1733249739595,0.0028629,95764.0,95763.0,0.000428]
[1733249739810,0.0028629,95764.0,95763.0,0.18628852]
[1733249740716,0.0008629,95764.0,95763.0,0.18628852]
[1733249740938,0.0018629,95764.0,95763.0,0.18628852]
[1733249741841,0.0028629,95764.0,95763.0,0.21290255]
[1733249744977,0.0028629,95764.0,95763.0,0.41290255]
[1733249745245,0.0028629,95764.0,95763.0,0.41105462]
[1733249745464,0.0028629,95764.0,95763.0,0.41049262]
[1733249752358,0.0028629,95764.0,95763.0,0.41221742]
[1733249765567,0.0028629,95764.0,95763.0,0.8649644]
[1733249766046,0.0028629,95764.0,95763.0,0.83101742]
[1733249771089,0.0028629,95764.0,95763.0,0.21221742]
[1733249771356,0.2117089,95764.0,95763.0,0.0017248]
[1733249771603,0.21774402,95764.0,95763.0,0.0017248]
[1733249772075,0.00889802,95764.0,95763.0,0.0017248]
[1733249772342,0.00689802,95764.0,95763.0,0.0017248]
[1733249775329,0.00789802,95764.0,95763.0,0.0017248]
[1733249775558,0.05539802,95764.0,95763.0,0.0017248]
[1733249776269,0.05639802,95764.0,95763.0,0.0017248]
[1733249776729,0.12589802,95764.0,95763.0,0.0017248]
[1733249779591,0.00689802,95764.0,95763.0,0.0017248]
[1733249785696,0.0008629,95764.0,95763.0,0.0017248]
[1733249785931,0.0008629,95764.0,95763.0,0.10643739]
[1733249786179,0.00723813,95764.0,95763.0,0.10828529]
[1733249786443,0.0008629,95764.0,95763.0,0.10828529]
[1733249786643,0.0008629,95764.0,95763.0,0.13559629]
[1733249792482,0.0008629,95764.0,95763.0,0.0017248]
[1733249793227,0.00730561,95764.0,95763.0,0.0017248]
[1733249793479,0.0008629,95764.0,95763.0,0.0017248]
[1733249793726,0.00730525,95764.0,95763.0,0.0017248]
[1733249793985,0.0008629,95764.0,95763.0,0.0017248]
[1733249794237,0.00730561,95764.0,95763.0,0.0017248]
[1733249794498,0.0008629,95764.0,95763.0,0.0017248]
[1733249794762,0.00730561,95764.0,95763.0,0.0017248]
[1733249795083,0.0008629,95764.0,95763.0,0.0017248]
[1733249795276,0.00730635,95764.0,95763.0,0.0017248]
[1733249795521,0.0008629,95764.0,95763.0,0.0017248]
[1733249795761,0.00728403,95764.0,95763.0,0.0017248]
[1733249795993,0.0008629,95764.0,95763.0,0.0017248]
[1733249796437,0.00730452,95764.0,95763.0,0.0017248]
[1733249796683,0.0008629,95764.0,95763.0,0.0017248]
[1733249796930,0.00730525,95764.0,95763.0,0.0017248]
[1733249797152,0.0008629,95764.0,95763.0,0.0017248]
[1733249797381,0.00730764,95764.0,95763.0,0.0017248]
[1733249797624,0.0008629,95764.0,95763.0,0.0017248]
[1733249797865,0.00730764,95764.0,95763.0,0.0017248]
[1733249798090,0.0008629,95764.0,95763.0,0.0017248]
[1733249798305,0.00730708,95764.0,95763.0,0.0017248]
[1733249801908,0.20617108,95765.0,95763.0,0.0017248]
[1733249802171,0.00537071,95764.0,95763.0,0.0017248]
[1733249807467,0.00537071,95764.0,95763.0,0.0840248]
[1733249807700,0.208836,95769.0,95763.0,0.0840248]
[1733249807913,0.00535325,95764.0,95763.0,0.0840248]
[1733249808139,0.208836,95769.0,95763.0,0.0840248]
[1733249808360,0.00535325,95764.0,95763.0,0.0840248]
[1733249808599,0.208836,95769.0,95763.0,0.0840248]
[1733249808819,0.00535325,95764.0,95763.0,0.0840248]
[1733249809032,0.208828,95773.0,95763.0,0.0840248]
[1733249809263,0.208828,95773.0,95764.0,0.00184809]
[1733249809564,0.0053413,95772.0,95764.0,0.00184809]
[1733249809987,0.0053413,95772.0,95765.0,0.001848]
[1733249810238,6.126e-05,95776.0,95766.0,0.208842]
[1733249810459,6.126e-05,95776.0,95766.0,0.21068996]
[1733249810694,0.0053413,95775.0,95766.0,0.21068996]
[1733249810906,0.0053413,95775.0,95764.0,0.00184794]
[1733249811134,6.126e-05,95776.0,95763.0,0.0840248]
[1733249811357,0.20884,95767.0,95763.0,0.0017248]
[1733249811562,0.41768,95767.0,95763.0,0.0017248]
[1733249811985,0.208844,95765.0,95763.0,0.0017248]
[1733249812441,0.00535211,95764.0,95763.0,0.0017248]
[1733249816167,0.41768,95767.0,95763.0,0.0017248]
[1733249816266,0.00535057,95764.0,95763.0,0.0017248]
[1733249816512,0.41768,95767.0,95763.0,0.0017248]
[1733249816750,0.00534577,95764.0,95763.0,0.0017248]
[1733249817009,0.41768,95767.0,95763.0,0.0017248]
[1733249817253,0.00534577,95764.0,95763.0,0.0017248]
[1733249817484,0.208844,95765.0,95763.0,0.0017248]
[1733249817715,0.00534577,95764.0,95763.0,0.0017248]
[1733249818642,0.0053261,95764.0,95763.0,0.0017248]
[1733249819084,0.208834,95770.0,95763.0,0.0017248]
[1733249819296,0.0053261,95764.0,95763.0,0.0017248]
[1733249819555,0.02698684,95773.0,95763.0,0.0017248]
[1733249819556,0.15260625,95773.0,95763.0,0.0017248]
[1733249819800,0.00532571,95764.0,95763.0,0.0017248]
[1733249820030,0.00584815,95764.0,95763.0,0.0017248]
[1733249820248,0.417685,95766.0,95763.0,0.0017248]
[1733249820482,0.00584756,95764.0,95747.0,0.00098123]
[1733249820724,0.22211259,95772.0,95747.0,0.00098123]
[1733249820725,0.12561941,95760.0,95747.0,0.00098123]
[1733249821204,0.208874,95752.0,95747.0,0.00098123]
[1733249821688,0.208877,95750.0,95747.0,0.00098123]
[1733249822173,0.00584566,95749.0,95747.0,0.00098123]
[1733249823119,0.208881,95748.0,95747.0,0.00098123]
[1733249823589,0.21472664,95748.0,95747.0,0.00098123]
[1733249825221,0.34722578,95748.0,95747.0,0.00098123]
[1733249825702,0.49722578,95748.0,95747.0,0.00098123]
[1733249825925,0.39251319,95748.0,95747.0,0.00098123]
[1733249826148,0.49722578,95748.0,95747.0,0.00098123]
[1733249827051,0.49922578,95748.0,95747.0,0.00098123]
[1733249827510,0.49722578,95748.0,95747.0,0.00098123]
[1733249827766,0.50222578,95748.0,95747.0,0.00098123]
[1733249828234,0.50022578,95748.0,95747.0,0.00098123]
[1733249828488,0.50422578,95748.0,95747.0,0.00098123]
[1733249831422,0.39951319,95748.0,95747.0,0.00098123]
[1733249836115,0.50422578,95748.0,95747.0,0.00098123]
[1733249836371,0.57472578,95748.0,95747.0,0.00098123]
[1733249836600,0.84722578,95748.0,95747.0,2.3e-07]
[1733249837547,0.84422578,95748.0,95747.0,2.3e-07]
[1733249837773,0.84022578,95748.0,95747.0,2.3e-07]
[1733249838044,0.84922578,95748.0,95747.0,2.3e-07]
[1733249838545,0.84022578,95748.0,95747.0,2.3e-07]
[1733249838782,0.64922578,95748.0,95747.0,2.3e-07]
[1733249839228,0.65522578,95748.0,95747.0,2.3e-07]
[1733249839687,0.64922578,95748.0,95747.0,2.3e-07]
[1733249840123,0.65822578,95748.0,95747.0,2.3e-07]
[1733249840822,0.56472578,95748.0,95747.0,2.3e-07]
[1733249841078,0.51522578,95748.0,95747.0,2.3e-07]
[1733249847067,0.208944,95719.0,95718.0,0.076]
[1733249847534,0.21472478,95719.0,95718.0,0.076]
[1733249847760,0.00578078,95719.0,95718.0,0.076]
[1733249848032,0.00578078,95719.0,95718.0,0.07784896]
[1733249848272,0.208924,95729.0,95718.0,0.07784891]
[1733249848507,9.787e-05,95719.0,95718.0,0.07784891]
[1733249848747,0.00209787,95719.0,95718.0,0.07784891]
[1733249849213,0.00409787,95719.0,95718.0,0.076]
[1733249850109,0.00209787,95719.0,95718.0,0.076]
[1733249851011,0.00409787,95719.0,95718.0,0.076]
[1733249856223,0.00409787,95719.0,95718.0,0.0777264]
[1733249858722,0.00409787,95719.0,95718.0,0.0795753]
[1733249859167,0.00409787,95719.0,95718.0,0.0777264]
[1733249860726,0.00988357,95719.0,95718.0,0.0777264]
[1733249860938,0.00409787,95719.0,95718.0,0.0777264]
[1733249861178,0.00988357,95719.0,95718.0,0.0777264]